[Event "Titled Tuesday Blitz June 6 Late 2023"]
[White "Pavlidou, Ekaterini"]
[Black "campochess"]
[WhiteFideId "4213262"]
[WhiteElo "2126"]
[BlackElo "2154"]
[Result "1-0"]
[Round "5"]
[TimeControl "180+2"]
[Date "2023.06.07"]
[WhiteClock "0:00:27"]
[BlackClock "0:00:47"]
[Board "148"]

1. d4 {[%clk 0:03:00]}  Nf6 {[%clk 0:02:44]} 2. c4 {[%clk 0:03:00]}  c5 {[%clk 0:02:44]} 3. d5 {[%clk 0:03:00]}  b5 {[%clk 0:02:44]} 4. cxb5 {[%clk 0:03:00]}  a6 {[%clk 0:02:43]} 5. bxa6 {[%clk 0:03:00]}  g6 {[%clk 0:02:43]} 6. Nc3 {[%clk 0:03:01]}  Bxa6 {[%clk 0:02:43]} 7. e4 {[%clk 0:03:01]}  Bxf1 {[%clk 0:02:42]} 8. Kxf1 {[%clk 0:03:01]}  d6 {[%clk 0:02:42]} 9. g3 {[%clk 0:03:01]}  Bg7 {[%clk 0:02:42]} 10. Kg2 {[%clk 0:03:02]}  Nbd7 {[%clk 0:02:42]} 11. h4 {[%clk 0:03:01]}  h6 {[%clk 0:02:40]} 12. Nge2 {[%clk 0:02:58]}  Ng4 {[%clk 0:02:39]} 13. h5 {[%clk 0:02:57]}  g5 {[%clk 0:02:38]} 14. f3 {[%clk 0:02:44]}  Nge5 {[%clk 0:02:37]} 15. b3 {[%clk 0:02:39]}  Nf6 {[%clk 0:02:32]} 16. Bb2 {[%clk 0:02:39]}  O-O {[%clk 0:02:30]} 17. f4 {[%clk 0:02:35]}  Neg4 {[%clk 0:02:26]} 18. Qd3 {[%clk 0:02:31]}  c4 {[%clk 0:02:24]} 19. bxc4 {[%clk 0:02:29]}  Qb6 {[%clk 0:02:22]} 20. Nd1 {[%clk 0:02:25]}  Nh7 {[%clk 0:01:49]} 21. Bxg7 {[%clk 0:02:23]}  Kxg7 {[%clk 0:01:48]} 22. Qd4+ {[%clk 0:02:22]}  Qxd4 {[%clk 0:01:47]} 23. Nxd4 {[%clk 0:02:22]}  Ra3 {[%clk 0:01:41]} 24. fxg5 {[%clk 0:02:06]}  Nxg5 {[%clk 0:01:40]} 25. Nf5+ {[%clk 0:02:02]}  Kh7 {[%clk 0:01:36]} 26. Re1 {[%clk 0:01:54]}  Ne5 {[%clk 0:01:31]} 27. Nb2 {[%clk 0:01:45]}  Rfa8 {[%clk 0:01:28]} 28. c5 {[%clk 0:01:04]}  Rxa2 {[%clk 0:01:28]} 29. Rxa2 {[%clk 0:01:04]}  Rxa2 {[%clk 0:01:27]} 30. c6 {[%clk 0:00:56]}  Rxb2+ {[%clk 0:01:26]} 31. Kf1 {[%clk 0:00:54]}  Ngf3 {[%clk 0:01:19]} 32. Re2 {[%clk 0:00:51]}  Rb1+ {[%clk 0:01:19]} 33. Kf2 {[%clk 0:00:49]}  Nh2 {[%clk 0:01:12]} 34. Rc2 {[%clk 0:00:47]}  Nhg4+ {[%clk 0:01:11]} 35. Ke2 {[%clk 0:00:45]}  Rb8 {[%clk 0:01:09]} 36. c7 {[%clk 0:00:45]}  Rc8 {[%clk 0:01:08]} 37. Nxe7 {[%clk 0:00:45]}  Rxc7 {[%clk 0:01:08]} 38. Rxc7 {[%clk 0:00:44]}  Kg7 {[%clk 0:01:08]} 39. Nc6 {[%clk 0:00:44]}  Nc4 {[%clk 0:01:03]} 40. Nd8 {[%clk 0:00:42]}  Nge5 {[%clk 0:01:02]} 41. Nxf7 {[%clk 0:00:40]}  Nxf7 {[%clk 0:01:00]} 42. Rxc4 {[%clk 0:00:40]}  Kf6 {[%clk 0:01:01]} 43. Rc7 {[%clk 0:00:39]}  Ne5 {[%clk 0:01:00]} 44. Rc6 {[%clk 0:00:37]}  Nf7 {[%clk 0:01:00]} 45. Kf3 {[%clk 0:00:36]}  Kg5 {[%clk 0:00:59]} 46. Rc7 {[%clk 0:00:34]}  Ne5+ {[%clk 0:00:58]} 47. Ke3 {[%clk 0:00:34]}  Kxh5 {[%clk 0:00:58]} 48. Kf4 {[%clk 0:00:34]}  Nd3+ {[%clk 0:00:57]} 49. Kf5 {[%clk 0:00:34]}  Nf2 {[%clk 0:00:52]} 50. Rd7 {[%clk 0:00:31]}  Nh1 {[%clk 0:00:52]} 51. g4+ {[%clk 0:00:30]}  Kh4 {[%clk 0:00:50]} 52. Rxd6 {[%clk 0:00:29]}  Ng3+ {[%clk 0:00:50]} 53. Kf4 {[%clk 0:00:28]}  Ne2+ {[%clk 0:00:48]} 54. Ke3 {[%clk 0:00:27]}  Ng3 {[%clk 0:00:46]} 55. Rxh6+ {[%clk 0:00:26]}  Kxg4 {[%clk 0:00:46]} 56. Rg6+ {[%clk 0:00:27]}  Kh4 {[%clk 0:00:47]} 57. Rxg3 {[%clk 0:00:27]} 1-0


[Site "https://www.chess.com"]

[Event "Titled Tuesday Blitz June 6 Late 2023"]
[White "SergioMoralesG"]
[Black "Osmonbekov, Talaibek"]
[BlackFideId "2017253"]
[WhiteElo "2468"]
[BlackElo "2135"]
[Result "1-0"]
[Round "5"]
[TimeControl "180+2"]
[Date "2023.06.07"]
[WhiteClock "0:01:35"]
[BlackClock "0:01:07"]
[Board "151"]

1. e4 {[%clk 0:03:00]}  c5 {[%clk 0:02:58]} 2. Nf3 {[%clk 0:02:59]}  d6 {[%clk 0:02:59]} 3. Bb5+ {[%clk 0:02:58]}  Bd7 {[%clk 0:02:57]} 4. Bxd7+ {[%clk 0:02:57]}  Qxd7 {[%clk 0:02:58]} 5. c4 {[%clk 0:02:57]}  Nc6 {[%clk 0:02:55]} 6. d4 {[%clk 0:02:55]}  cxd4 {[%clk 0:02:55]} 7. Nxd4 {[%clk 0:02:55]}  Nf6 {[%clk 0:02:55]} 8. Nc3 {[%clk 0:02:55]}  e6 {[%clk 0:02:54]} 9. O-O {[%clk 0:02:54]}  Be7 {[%clk 0:02:55]} 10. Be3 {[%clk 0:02:53]}  O-O {[%clk 0:02:52]} 11. h3 {[%clk 0:02:53]}  Rfd8 {[%clk 0:02:51]} 12. Qe2 {[%clk 0:02:50]}  d5 {[%clk 0:02:51]} 13. cxd5 {[%clk 0:02:39]}  exd5 {[%clk 0:02:48]} 14. Nxc6 {[%clk 0:02:38]}  bxc6 {[%clk 0:02:48]} 15. e5 {[%clk 0:02:38]}  Ne8 {[%clk 0:02:43]} 16. Rad1 {[%clk 0:02:35]}  Qb7 {[%clk 0:02:38]} 17. f4 {[%clk 0:02:23]}  c5 {[%clk 0:02:30]} 18. Qf3 {[%clk 0:02:18]}  Nc7 {[%clk 0:02:24]} 19. f5 {[%clk 0:02:16]}  Bf8 {[%clk 0:02:24]} 20. e6 {[%clk 0:02:06]}  f6 {[%clk 0:02:16]} 21. Rf2 {[%clk 0:01:59]}  Rab8 {[%clk 0:02:14]} 22. Bf4 {[%clk 0:01:51]}  Be7 {[%clk 0:02:08]} 23. Bxc7 {[%clk 0:01:49]}  Qxc7 {[%clk 0:02:02]} 24. Nxd5 {[%clk 0:01:48]}  Qb7 {[%clk 0:01:48]} 25. Rfd2 {[%clk 0:01:48]}  Re8 {[%clk 0:01:22]} 26. b3 {[%clk 0:01:41]}  a5 {[%clk 0:01:13]} 27. Nxe7+ {[%clk 0:01:36]}  Rxe7 {[%clk 0:01:07]} 28. Rd8+ {[%clk 0:01:35]} 1-0


[Site "https://www.chess.com"]

[Event "Titled Tuesday Blitz June 6 Late 2023"]
[White "el_sporco"]
[Black "Djordjevic, Dejan N"]
[BlackFideId "913316"]
[WhiteElo "2436"]
[BlackElo "2261"]
[Result "0-1"]
[Round "5"]
[TimeControl "180+2"]
[Date "2023.06.07"]
[WhiteClock "0:00:04"]
[BlackClock "0:00:06"]
[Board "152"]

1. e4 {[%clk 0:03:00]}  c5 {[%clk 0:02:55]} 2. Nf3 {[%clk 0:02:59]}  Nc6 {[%clk 0:02:54]} 3. Bb5 {[%clk 0:02:59]}  g6 {[%clk 0:02:54]} 4. Bxc6 {[%clk 0:02:59]}  dxc6 {[%clk 0:02:53]} 5. O-O {[%clk 0:03:00]}  Bg7 {[%clk 0:02:54]} 6. d3 {[%clk 0:03:00]}  e5 {[%clk 0:02:54]} 7. Be3 {[%clk 0:02:59]}  b6 {[%clk 0:02:54]} 8. a3 {[%clk 0:02:53]}  a5 {[%clk 0:02:54]} 9. Qd2 {[%clk 0:02:53]}  Rb8 {[%clk 0:02:51]} 10. h3 {[%clk 0:02:50]}  Qc7 {[%clk 0:02:39]} 11. b4 {[%clk 0:02:49]}  axb4 {[%clk 0:02:35]} 12. axb4 {[%clk 0:02:50]}  cxb4 {[%clk 0:02:33]} 13. Qxb4 {[%clk 0:02:49]}  Ne7 {[%clk 0:02:29]} 14. Nbd2 {[%clk 0:02:39]}  O-O {[%clk 0:02:22]} 15. Rfb1 {[%clk 0:02:37]}  c5 {[%clk 0:02:15]} 16. Qb2 {[%clk 0:02:25]}  Nc6 {[%clk 0:02:01]} 17. Nc4 {[%clk 0:02:22]}  b5 {[%clk 0:01:58]} 18. Na3 {[%clk 0:02:09]}  b4 {[%clk 0:01:47]} 19. Nc4 {[%clk 0:02:07]}  Nd4 {[%clk 0:01:47]} 20. Bxd4 {[%clk 0:01:55]}  exd4 {[%clk 0:01:34]} 21. Ra5 {[%clk 0:01:48]}  Be6 {[%clk 0:01:31]} 22. Rba1 {[%clk 0:01:44]}  Rfc8 {[%clk 0:01:09]} 23. Ra7 {[%clk 0:01:40]}  Qf4 {[%clk 0:01:08]} 24. Ncd2 {[%clk 0:01:31]}  h6 {[%clk 0:00:57]} 25. Qc1 {[%clk 0:01:23]}  g5 {[%clk 0:00:53]} 26. Nb3 {[%clk 0:01:23]}  Qf6 {[%clk 0:00:41]} 27. R1a5 {[%clk 0:01:14]}  c4 {[%clk 0:00:38]} 28. dxc4 {[%clk 0:00:58]}  Rxc4 {[%clk 0:00:37]} 29. Qd1 {[%clk 0:00:55]}  g4 {[%clk 0:00:19]} 30. hxg4 {[%clk 0:00:38]}  Bxg4 {[%clk 0:00:18]} 31. Ra8 {[%clk 0:00:38]}  Rxa8 {[%clk 0:00:17]} 32. Rxa8+ {[%clk 0:00:39]}  Kh7 {[%clk 0:00:14]} 33. e5 {[%clk 0:00:39]}  Qg6 {[%clk 0:00:13]} 34. Kf1 {[%clk 0:00:36]}  Bxe5 {[%clk 0:00:12]} 35. Qd3 {[%clk 0:00:19]}  Bxf3 {[%clk 0:00:07]} 36. gxf3 {[%clk 0:00:04]}  Rxc2 {[%clk 0:00:06]} 0-1


[Site "https://www.chess.com"]

[Event "Titled Tuesday Blitz June 6 Late 2023"]
[White "Wizard_of_Odds"]
[Black "Araujo Filho, Luiz Antonio Coel"]
[BlackFideId "2130661"]
[WhiteElo "2410"]
[BlackElo "2056"]
[Result "0-1"]
[Round "5"]
[TimeControl "180+2"]
[Date "2023.06.07"]
[WhiteClock "0:00:03"]
[BlackClock "0:00:07"]
[Board "153"]

1. d4 {[%clk 0:02:58]}  f5 {[%clk 0:02:57]} 2. Nf3 {[%clk 0:02:57]}  Nf6 {[%clk 0:02:56]} 3. c4 {[%clk 0:02:55]}  g6 {[%clk 0:02:55]} 4. b3 {[%clk 0:02:55]}  Bg7 {[%clk 0:02:56]} 5. Bb2 {[%clk 0:02:55]}  O-O {[%clk 0:02:56]} 6. Nbd2 {[%clk 0:02:51]}  d6 {[%clk 0:02:56]} 7. e3 {[%clk 0:02:47]}  Nc6 {[%clk 0:02:56]} 8. Bd3 {[%clk 0:02:44]}  Qe8 {[%clk 0:02:57]} 9. e4 {[%clk 0:02:43]}  e5 {[%clk 0:02:56]} 10. dxe5 {[%clk 0:02:40]}  dxe5 {[%clk 0:02:55]} 11. Qe2 {[%clk 0:02:33]}  f4 {[%clk 0:02:51]} 12. h3 {[%clk 0:02:27]}  a5 {[%clk 0:02:47]} 13. c5 {[%clk 0:02:23]}  Nd7 {[%clk 0:02:43]} 14. Bc4+ {[%clk 0:02:19]}  Kh8 {[%clk 0:02:43]} 15. Ba3 {[%clk 0:02:15]}  Qe7 {[%clk 0:02:29]} 16. Rc1 {[%clk 0:02:08]}  Nxc5 {[%clk 0:02:21]} 17. O-O {[%clk 0:02:06]}  b6 {[%clk 0:02:19]} 18. Bd5 {[%clk 0:02:05]}  Bb7 {[%clk 0:02:16]} 19. Bxc5 {[%clk 0:02:01]}  bxc5 {[%clk 0:02:16]} 20. a4 {[%clk 0:01:58]}  Ra7 {[%clk 0:02:07]} 21. Bxc6 {[%clk 0:01:52]}  Bxc6 {[%clk 0:02:06]} 22. Nc4 {[%clk 0:01:52]}  Raa8 {[%clk 0:01:56]} 23. Rfd1 {[%clk 0:01:50]}  Rfb8 {[%clk 0:01:47]} 24. Rd3 {[%clk 0:01:43]}  h6 {[%clk 0:01:34]} 25. Nfd2 {[%clk 0:01:24]}  g5 {[%clk 0:01:27]} 26. Qg4 {[%clk 0:01:19]}  Be8 {[%clk 0:01:21]} 27. Qf5 {[%clk 0:01:10]}  Rd8 {[%clk 0:01:17]} 28. Rxd8 {[%clk 0:01:07]}  Qxd8 {[%clk 0:01:17]} 29. Nf3 {[%clk 0:01:04]}  Qd3 {[%clk 0:01:14]} 30. Nfxe5 {[%clk 0:01:00]}  Qxb3 {[%clk 0:01:14]} 31. h4 {[%clk 0:00:40]}  Qxa4 {[%clk 0:01:09]} 32. hxg5 {[%clk 0:00:38]}  hxg5 {[%clk 0:01:10]} 33. Qxg5 {[%clk 0:00:36]}  Qa2 {[%clk 0:00:33]} 34. Qxf4 {[%clk 0:00:32]}  Qe2 {[%clk 0:00:30]} 35. f3 {[%clk 0:00:26]}  a4 {[%clk 0:00:30]} 36. Ra1 {[%clk 0:00:17]}  a3 {[%clk 0:00:27]} 37. Qc1 {[%clk 0:00:12]}  a2 {[%clk 0:00:26]} 38. Kh2 {[%clk 0:00:07]}  Qf2 {[%clk 0:00:17]} 39. f4 {[%clk 0:00:05]}  Qh4+ {[%clk 0:00:16]} 40. Kg1 {[%clk 0:00:06]}  Bh6 {[%clk 0:00:15]} 41. Nd3 {[%clk 0:00:04]}  Qg3 {[%clk 0:00:13]} 42. Qd2 {[%clk 0:00:03]}  Bg6 {[%clk 0:00:11]} 43. Nce5 {[%clk 0:00:01]}  Bxe4 {[%clk 0:00:10]} 44. Rxa2 {[%clk 0:00:02]}  Rxa2 {[%clk 0:00:09]} 45. Qxa2 {[%clk 0:00:03]}  Bxd3 {[%clk 0:00:09]} 46. Nxd3 {[%clk 0:00:02]}  Qxd3 {[%clk 0:00:10]} 47. Qa8+ {[%clk 0:00:02]}  Kh7 {[%clk 0:00:09]} 48. Qc6 {[%clk 0:00:03]}  Qd4+ {[%clk 0:00:08]} 49. Kh1 {[%clk 0:00:02]}  Bxf4 {[%clk 0:00:08]} 50. Qd7+ {[%clk 0:00:02]}  Qxd7 {[%clk 0:00:07]} 51. g3 {[%clk 0:00:01]}  Qd1+ {[%clk 0:00:07]} 52. Kg2 {[%clk 0:00:01]}  Qe2+ {[%clk 0:00:08]} 53. Kh1 {[%clk 0:00:02]}  Qf1+ {[%clk 0:00:07]} 54. Kh2 {[%clk 0:00:02]}  Qf2+ {[%clk 0:00:08]} 55. Kh1 {[%clk 0:00:02]}  c4 {[%clk 0:00:06]} 56. gxf4 {[%clk 0:00:02]}  c3 {[%clk 0:00:06]} 57. f5 {[%clk 0:00:02]}  c2 {[%clk 0:00:07]} 58. f6 {[%clk 0:00:03]}  c1=Q# {[%clk 0:00:07]} 0-1


[Site "https://www.chess.com"]

[Event "Titled Tuesday Blitz June 6 Late 2023"]
[White "Tarnowska, Aleksandra"]
[Black "Kujawski, Adam"]
[WhiteFideId "1180967"]
[BlackFideId "1100920"]
[WhiteElo "1776"]
[BlackElo "2054"]
[Result "0-1"]
[Round "5"]
[TimeControl "180+2"]
[Date "2023.06.07"]
[WhiteClock "0:00:02"]
[BlackClock "0:00:06"]
[Board "154"]

1. e4 {[%clk 0:03:00]}  e5 {[%clk 0:02:55]} 2. Nf3 {[%clk 0:03:01]}  Nc6 {[%clk 0:02:55]} 3. Bb5 {[%clk 0:03:01]}  a6 {[%clk 0:02:55]} 4. Ba4 {[%clk 0:03:02]}  Nf6 {[%clk 0:02:55]} 5. O-O {[%clk 0:03:01]}  Be7 {[%clk 0:02:55]} 6. Re1 {[%clk 0:03:01]}  b5 {[%clk 0:02:54]} 7. Bb3 {[%clk 0:03:01]}  d6 {[%clk 0:02:54]} 8. h3 {[%clk 0:03:00]}  O-O {[%clk 0:02:53]} 9. c3 {[%clk 0:02:47]}  Nb8 {[%clk 0:02:49]} 10. d4 {[%clk 0:02:46]}  Nbd7 {[%clk 0:02:49]} 11. Nbd2 {[%clk 0:02:43]}  Bb7 {[%clk 0:02:49]} 12. Bc2 {[%clk 0:02:40]}  Re8 {[%clk 0:02:48]} 13. Nf1 {[%clk 0:02:38]}  Bf8 {[%clk 0:02:48]} 14. Ng3 {[%clk 0:02:38]}  g6 {[%clk 0:02:49]} 15. Bg5 {[%clk 0:02:37]}  c5 {[%clk 0:02:16]} 16. d5 {[%clk 0:02:34]}  c4 {[%clk 0:02:04]} 17. Qd2 {[%clk 0:02:33]}  Be7 {[%clk 0:01:39]} 18. Nh2 {[%clk 0:02:29]}  Nxd5 {[%clk 0:01:06]} 19. Bxe7 {[%clk 0:02:12]}  Nxe7 {[%clk 0:01:07]} 20. Qxd6 {[%clk 0:02:13]}  Nc8 {[%clk 0:01:07]} 21. Qd2 {[%clk 0:02:05]}  Qe7 {[%clk 0:01:07]} 22. Ng4 {[%clk 0:02:03]}  Nf6 {[%clk 0:00:53]} 23. Nh6+ {[%clk 0:01:54]}  Kh8 {[%clk 0:00:50]} 24. Qg5 {[%clk 0:01:38]}  Ng8 {[%clk 0:00:43]} 25. Qe3 {[%clk 0:00:45]}  Nxh6 {[%clk 0:00:41]} 26. Qxh6 {[%clk 0:00:45]}  Nd6 {[%clk 0:00:41]} 27. Rad1 {[%clk 0:00:43]}  Rad8 {[%clk 0:00:40]} 28. Rd2 {[%clk 0:00:40]}  f6 {[%clk 0:00:39]} 29. Red1 {[%clk 0:00:40]}  Nf7 {[%clk 0:00:36]} 30. Qh4 {[%clk 0:00:25]}  Rxd2 {[%clk 0:00:35]} 31. Rxd2 {[%clk 0:00:25]}  Rd8 {[%clk 0:00:32]} 32. Nf1 {[%clk 0:00:26]}  Kg7 {[%clk 0:00:30]} 33. Kh2 {[%clk 0:00:25]}  Rxd2 {[%clk 0:00:29]} 34. Nxd2 {[%clk 0:00:26]}  Qd6 {[%clk 0:00:29]} 35. Nf3 {[%clk 0:00:24]}  Bc8 {[%clk 0:00:25]} 36. Qg3 {[%clk 0:00:21]}  Bb7 {[%clk 0:00:22]} 37. Nh4 {[%clk 0:00:21]}  Kf8 {[%clk 0:00:20]} 38. Qe3 {[%clk 0:00:20]}  Ng5 {[%clk 0:00:18]} 39. Nf3 {[%clk 0:00:15]}  Nxf3+ {[%clk 0:00:17]} 40. Qxf3 {[%clk 0:00:15]}  Kg7 {[%clk 0:00:17]} 41. h4 {[%clk 0:00:14]}  Qd2 {[%clk 0:00:14]} 42. Bd1 {[%clk 0:00:05]}  Qf4+ {[%clk 0:00:10]} 43. Qxf4 {[%clk 0:00:04]}  exf4 {[%clk 0:00:11]} 44. f3 {[%clk 0:00:04]}  Kf7 {[%clk 0:00:11]} 45. Kh3 {[%clk 0:00:04]}  Bc8+ {[%clk 0:00:10]} 46. Kh2 {[%clk 0:00:04]}  Ke6 {[%clk 0:00:10]} 47. Kg1 {[%clk 0:00:05]}  Ke5 {[%clk 0:00:10]} 48. Kf2 {[%clk 0:00:06]}  h6 {[%clk 0:00:09]} 49. Ke2 {[%clk 0:00:05]}  g5 {[%clk 0:00:09]} 50. hxg5 {[%clk 0:00:05]}  fxg5 {[%clk 0:00:10]} 51. b3 {[%clk 0:00:04]}  cxb3 {[%clk 0:00:09]} 52. Bxb3 {[%clk 0:00:04]}  a5 {[%clk 0:00:10]} 53. Bf7 {[%clk 0:00:04]}  Bd7 {[%clk 0:00:09]} 54. Kd3 {[%clk 0:00:03]}  Bc6 {[%clk 0:00:06]} 55. Bg6 {[%clk 0:00:02]}  Bd7 {[%clk 0:00:05]} 56. a3 {[%clk 0:00:02]}  Be6 {[%clk 0:00:05]} 57. Be8 {[%clk 0:00:02]}  Bc4+ {[%clk 0:00:05]} 58. Kd2 {[%clk 0:00:01]}  Bf1 {[%clk 0:00:06]} 59. Ke1 {[%clk 0:00:01]}  Bxg2 {[%clk 0:00:06]} 60. Bxb5 {[%clk 0:00:02]}  Bxf3 {[%clk 0:00:06]} 0-1


[Site "https://www.chess.com"]

[Event "Titled Tuesday Blitz June 6 Late 2023"]
[White "Rian, Kapriaga"]
[Black "NtcPou"]
[WhiteFideId "7103263"]
[WhiteElo "2324"]
[BlackElo "2048"]
[Result "1-0"]
[Round "5"]
[TimeControl "180+2"]
[Date "2023.06.07"]
[WhiteClock "0:00:05"]
[BlackClock "0:00:03"]
[Board "157"]

1. d4 {[%clk 0:03:00]}  d5 {[%clk 0:02:57]} 2. c4 {[%clk 0:03:00]}  c6 {[%clk 0:02:56]} 3. Nc3 {[%clk 0:02:58]}  Nf6 {[%clk 0:02:56]} 4. e3 {[%clk 0:02:58]}  a6 {[%clk 0:02:55]} 5. b3 {[%clk 0:02:57]}  Bf5 {[%clk 0:02:42]} 6. Nf3 {[%clk 0:02:56]}  h6 {[%clk 0:02:42]} 7. Be2 {[%clk 0:02:55]}  Ne4 {[%clk 0:02:41]} 8. Bb2 {[%clk 0:02:54]}  e6 {[%clk 0:02:41]} 9. O-O {[%clk 0:02:54]}  Bb4 {[%clk 0:02:37]} 10. Nxe4 {[%clk 0:02:53]}  dxe4 {[%clk 0:02:31]} 11. Ne5 {[%clk 0:02:42]}  O-O {[%clk 0:02:13]} 12. f3 {[%clk 0:02:28]}  f6 {[%clk 0:01:52]} 13. fxe4 {[%clk 0:02:19]}  Bxe4 {[%clk 0:01:51]} 14. Bd3 {[%clk 0:02:11]}  Bxd3 {[%clk 0:01:42]} 15. Nxd3 {[%clk 0:02:10]}  Bd6 {[%clk 0:01:26]} 16. e4 {[%clk 0:02:10]}  Nd7 {[%clk 0:01:14]} 17. Qg4 {[%clk 0:02:08]}  Qe7 {[%clk 0:01:02]} 18. Rae1 {[%clk 0:02:08]}  e5 {[%clk 0:01:00]} 19. d5 {[%clk 0:02:02]}  cxd5 {[%clk 0:00:50]} 20. exd5 {[%clk 0:01:57]}  a5 {[%clk 0:00:45]} 21. Bc1 {[%clk 0:01:56]}  Nc5 {[%clk 0:00:42]} 22. Nf4 {[%clk 0:01:50]}  Qf7 {[%clk 0:00:26]} 23. Ng6 {[%clk 0:01:48]}  Rfe8 {[%clk 0:00:25]} 24. Rf3 {[%clk 0:00:58]}  Kh7 {[%clk 0:00:23]} 25. Nh4 {[%clk 0:00:51]}  e4 {[%clk 0:00:19]} 26. Rh3 {[%clk 0:00:50]}  Nd3 {[%clk 0:00:14]} 27. Nf5 {[%clk 0:00:34]}  Bc5+ {[%clk 0:00:12]} 28. Be3 {[%clk 0:00:31]}  Nxe1 {[%clk 0:00:07]} 29. Bxc5 {[%clk 0:00:26]}  Qg6 {[%clk 0:00:07]} 30. Qxg6+ {[%clk 0:00:18]}  Kxg6 {[%clk 0:00:07]} 31. Nd6 {[%clk 0:00:17]}  Re5 {[%clk 0:00:06]} 32. Be3 {[%clk 0:00:14]}  Nd3 {[%clk 0:00:06]} 33. Nxb7 {[%clk 0:00:13]}  a4 {[%clk 0:00:05]} 34. Rg3+ {[%clk 0:00:11]}  Kh7 {[%clk 0:00:05]} 35. b4 {[%clk 0:00:10]}  f5 {[%clk 0:00:05]} 36. Bd4 {[%clk 0:00:08]}  Re7 {[%clk 0:00:03]} 37. Nc5 {[%clk 0:00:08]}  f4 {[%clk 0:00:03]} 38. Rg4 {[%clk 0:00:05]}  e3 {[%clk 0:00:03]} 39. Nxd3 {[%clk 0:00:05]} 1-0


[Site "https://www.chess.com"]

[Event "Titled Tuesday Blitz June 6 Late 2023"]
[White "Dmitriev, Sergey"]
[Black "Kostiukov, Alexandr"]
[WhiteFideId "14101785"]
[BlackFideId "14108100"]
[WhiteElo "2132"]
[BlackElo "2202"]
[Result "0-1"]
[Round "5"]
[TimeControl "180+2"]
[Date "2023.06.07"]
[WhiteClock "0:02:12"]
[BlackClock "0:01:55"]
[Board "158"]

1. d4 {[%clk 0:03:00]}  g6 {[%clk 0:02:57]} 2. Nf3 {[%clk 0:03:00]}  Bg7 {[%clk 0:02:57]} 3. Bf4 {[%clk 0:03:00]}  d6 {[%clk 0:02:57]} 4. e3 {[%clk 0:03:00]}  Nc6 {[%clk 0:02:58]} 5. h3 {[%clk 0:02:59]}  e5 {[%clk 0:02:58]} 6. dxe5 {[%clk 0:02:58]}  Nxe5 {[%clk 0:02:59]} 7. Nbd2 {[%clk 0:02:55]}  Nxf3+ {[%clk 0:02:57]} 8. Nxf3 {[%clk 0:02:54]}  Bxb2 {[%clk 0:02:57]} 9. Rb1 {[%clk 0:02:55]}  Bc3+ {[%clk 0:02:55]} 10. Nd2 {[%clk 0:02:54]}  Nf6 {[%clk 0:02:37]} 11. Bc4 {[%clk 0:02:52]}  Ne4 {[%clk 0:02:32]} 12. O-O {[%clk 0:02:34]}  Nxd2 {[%clk 0:02:29]} 13. Bh6 {[%clk 0:02:21]}  Qh4 {[%clk 0:01:57]} 14. Bg7 {[%clk 0:02:12]}  Bxg7 {[%clk 0:01:55]} 15. Qxd2 {[%clk 0:02:12]}  Qxc4 {[%clk 0:01:55]} 0-1


[Site "https://www.chess.com"]

[Event "Titled Tuesday Blitz June 6 Late 2023"]
[White "Makarian, Rudik"]
[Black "Sarana, Alexey"]
[WhiteFideId "44105681"]
[BlackFideId "24133795"]
[WhiteElo "2451"]
[BlackElo "2714"]
[Result "1-0"]
[Round "6"]
[TimeControl "180+2"]
[Date "2023.06.07"]
[WhiteClock "0:01:50"]
[BlackClock "0:02:29"]
[Board "1"]

1. d4 {[%clk 0:03:00]}  Nf6 {[%clk 0:02:59]} 2. c4 {[%clk 0:03:01]}  e6 {[%clk 0:03:00]} 3. Nf3 {[%clk 0:03:02]}  d5 {[%clk 0:03:00]} 4. g3 {[%clk 0:03:00]}  Bb4+ {[%clk 0:02:56]} 5. Bd2 {[%clk 0:03:00]}  Be7 {[%clk 0:02:56]} 6. Bg2 {[%clk 0:03:00]}  c6 {[%clk 0:02:55]} 7. Qc2 {[%clk 0:03:00]}  b6 {[%clk 0:02:55]} 8. Bf4 {[%clk 0:02:59]}  O-O {[%clk 0:02:52]} 9. O-O {[%clk 0:02:59]}  Ba6 {[%clk 0:02:51]} 10. Nbd2 {[%clk 0:02:59]}  Nh5 {[%clk 0:02:50]} 11. Be5 {[%clk 0:02:46]}  Nd7 {[%clk 0:02:50]} 12. Rfe1 {[%clk 0:02:47]}  f6 {[%clk 0:02:44]} 13. cxd5 {[%clk 0:02:30]}  cxd5 {[%clk 0:02:42]} 14. Bc7 {[%clk 0:02:23]}  Rc8 {[%clk 0:02:35]} 15. Bxd8 {[%clk 0:02:20]}  Rxc2 {[%clk 0:02:34]} 16. Bxe7 {[%clk 0:02:21]}  Rfc8 {[%clk 0:02:34]} 17. Ba3 {[%clk 0:02:18]}  g5 {[%clk 0:02:33]} 18. h3 {[%clk 0:02:14]}  Ng7 {[%clk 0:02:33]} 19. Bf1 {[%clk 0:02:12]}  Nf5 {[%clk 0:02:32]} 20. e4 {[%clk 0:02:10]}  Bxf1 {[%clk 0:02:31]} 21. exf5 {[%clk 0:02:06]}  Bxh3 {[%clk 0:02:32]} 22. fxe6 {[%clk 0:02:07]}  Nb8 {[%clk 0:02:32]} 23. Nf1 {[%clk 0:01:52]}  Nc6 {[%clk 0:02:29]} 24. Ne3 {[%clk 0:01:50]} 1-0


[Site "https://www.chess.com"]